fUSD/lending_fUSD_20250923
["ID","MTS","AMOUNT","RATE_DAILY","PERIOD"]
[387189805,1758626875285,216.090035,0.00017983,2]
[387189861,1758627032114,-261.52,0.0001862,2]
[387189864,1758627032273,-2390.76186712,0.0001862,2]
[387189865,1758627032282,-161.87366382,0.000187,2]
[387189866,1758627032292,-1200.0,0.00018999,2]
[387189867,1758627032302,-66562.37116959,0.00019,2]
[387189868,1758627032312,-151.0,0.0001948,2]
[387189869,1758627032321,-4737.06283346,0.000197,2]
[387189870,1758627032331,-150.0,0.0001986,7]
[387189871,1758627032341,-21759.24175463,0.000199,2]
[387189872,1758627032351,-169.92549347,0.000199,2]
[387189873,1758627032361,-523.42396445,0.000199,2]
[387189874,1758627032370,-272.1160299,0.000199,3]
[387189875,1758627032380,-188.34710444,0.000199,2]
[387189876,1758627032389,-161.5139024,0.000199,2]
[387189877,1758627032399,-883.46876764,0.000199,2]
[387189878,1758627032409,-56897.63860726,0.000199,2]
[387189879,1758627032419,-628.88159094,0.000199,2]
[387189880,1758627032428,-2046.22555328,0.000199,2]
[387189881,1758627032438,-672.02,0.00019912,2]
[387189882,1758627032447,-235.0,0.00019927,2]
[387189883,1758627032459,-500.0,0.00019973,2]
[387189885,1758627032468,-500.0,0.00019973,2]
[387189887,1758627032478,-500.0,0.00019973,2]
[387189889,1758627032488,-152.13,0.0001999,2]
[387189892,1758627032498,-152.13,0.0001999,2]
[387189894,1758627032507,-152.13,0.0001999,2]
[387189896,1758627032517,-152.13,0.0001999,2]
[387189898,1758627032527,-300.0,0.00019999,2]
[387189899,1758627032536,-666.0,0.00019999,2]
[387189901,1758627032546,-159.45595699,0.00019999,2]
[387189903,1758627032556,-297.34608896,0.00019999,2]
[387189905,1758627032566,-500.0,0.00019999,2]
[387189907,1758627032575,-359.60125938,0.00019999,2]
[387189909,1758627032584,-500.0,0.00019999,2]
[387189910,1758627032593,-169.10714989,0.00019999,2]
[387189912,1758627032603,-500.0,0.00019999,2]
[387189913,1758627032613,-500.0,0.00019999,2]
[387189916,1758627032623,-500.0,0.00019999,2]
[387189917,1758627032632,-500.0,0.00019999,2]
[387189919,1758627032642,-500.0,0.00019999,2]
[387189921,1758627032651,-182.43877422,0.00019999,2]
[387189923,1758627032661,-289.52511021,0.00019999,2]
[387189926,1758627032671,-184087.43777649,0.0002,2]
[387189928,1758627032683,-356830.521,0.0002,2]
[387189930,1758627032694,-27260.3618203,0.0002,2]
[387189934,1758627032714,-154623.40946407,0.0002,2]
[387189973,1758627037850,-741.02,0.00019288,2]
[387189974,1758627037861,-353.60430825,0.00019899,2]
[387189975,1758627037871,-228.64762883,0.0002,2]
[387189976,1758627037884,-480.50485844,0.0002,2]
[387189977,1758627038017,-77101.92376366,0.0002,2]
[387189978,1758627038180,-554.67338177,0.0002,2]
[387189989,1758627040045,-1242.41389869,0.0002,2]
[387189990,1758627040057,-900.68520752,0.0002,2]
[387189991,1758627040310,-165487.2817606,0.0002,2]
[387189992,1758627040320,-500.0,0.0002,2]
[387189993,1758627040334,-1000.0,0.0002,2]
[387189994,1758627040344,-1000.0,0.0002,2]
[387189995,1758627040354,-1000.0,0.0002,2]
[387189996,1758627040364,-1000.0,0.0002,2]
[387189997,1758627040373,-1000.0,0.0002,2]
[387189998,1758627040383,-1000.0,0.0002,2]
[387189999,1758627040392,-1000.0,0.0002,2]
[387190000,1758627040402,-1000.0,0.0002,2]
[387190001,1758627040412,-1000.0,0.0002,2]
[387190002,1758627040422,-1000.0,0.0002,2]
[387190003,1758627040432,-1000.0,0.0002,2]
[387190004,1758627040442,-1000.0,0.0002,2]
[387190005,1758627040452,-1000.0,0.0002,2]
[387190006,1758627040463,-1000.0,0.0002,2]
[387190007,1758627040473,-1000.0,0.0002,2]
[387190009,1758627040482,-1000.0,0.0002,2]
[387190011,1758627040492,-1000.0,0.0002,2]
[387190013,1758627040502,-1000.0,0.0002,2]
[387190015,1758627040511,-1000.0,0.0002,2]
[387190017,1758627040521,-1000.0,0.0002,2]
[387190020,1758627040531,-1000.0,0.0002,2]
[387190022,1758627040542,-1000.0,0.0002,2]
[387190024,1758627040556,-1000.0,0.0002,2]
[387190026,1758627040566,-1000.0,0.0002,2]
[387190028,1758627040575,-1000.0,0.0002,2]
[387190030,1758627040585,-1000.0,0.0002,2]
[387190032,1758627040595,-1000.0,0.0002,2]
[387190035,1758627040605,-1000.0,0.0002,2]
[387190037,1758627040615,-1000.0,0.0002,2]
[387190039,1758627040625,-1000.0,0.0002,2]
[387190041,1758627040635,-1000.0,0.0002,2]
[387190043,1758627040644,-1000.0,0.0002,2]
[387190045,1758627040655,-1000.0,0.0002,2]
[387190047,1758627040665,-1000.0,0.0002,2]
[387190049,1758627040675,-1000.0,0.0002,2]
[387190051,1758627040685,-1000.0,0.0002,2]
[387190053,1758627040695,-1000.0,0.0002,2]
[387190055,1758627040705,-1000.0,0.0002,2]
[387190056,1758627040715,-1000.0,0.0002,2]
[387190058,1758627040725,-1000.0,0.0002,2]
[387190060,1758627040735,-1000.0,0.0002,2]
[387190062,1758627040745,-1000.0,0.0002,2]
[387190063,1758627040755,-1000.0,0.0002,2]
[387190065,1758627040765,-1000.0,0.0002,2]
[387190067,1758627040776,-1000.0,0.0002,2]
[387190069,1758627040787,-1000.0,0.0002,2]
[387190070,1758627040797,-1000.0,0.0002,2]
[387190072,1758627040807,-1000.0,0.0002,2]
[387190074,1758627040817,-1000.0,0.0002,2]
[387190076,1758627040827,-1000.0,0.0002,2]
[387190077,1758627040837,-1000.0,0.0002,2]
[387190079,1758627040847,-1319.10044956,0.0002,2]
[387190081,1758627040857,-1000.0,0.0002,2]
[387190083,1758627040867,-25819.29264865,0.0002,5]
[387190084,1758627040878,-541187.4576762,0.0002,2]
[387190086,1758627040891,-579.5458976,0.0002,2]
[387190092,1758627040952,-3806.39,0.0002,2]
[387190095,1758627040976,-4913.49352744,0.0002,2]
[387190113,1758627046260,-230.18092966,0.0001999,2]
[387190114,1758627046270,-230.18092966,0.0001999,2]
[387190115,1758627046279,-1861.43814068,0.0002,2]
[387190585,1758627100179,10000.0,0.00030137,120]
[387190589,1758627109168,10000.0,0.00030137,120]
[387190595,1758627151806,187.0,0.00030137,120]
[387190610,1758627212866,161.5,9.66e-05,2]
[387190611,1758627213429,161.5,0.00010868,2]
[387190612,1758627213488,161.5,0.00012075,2]
[387190613,1758627213556,161.5,0.00013283,2]
[387190614,1758627213737,161.5,0.0001449,2]
[387190615,1758627213933,152.0,0.00015698,2]
[387190616,1758627213960,9.5,0.00015698,2]
[387190617,1758627214156,161.5,0.00016905,2]
[387190618,1758627214631,161.5,0.00018113,2]
[387190645,1758627310108,1000.0,0.0003013,120]
[387190646,1758627311829,1000.0,0.0003013,120]
[387190647,1758627312875,1000.0,0.0003013,120]
[387190648,1758627313619,1000.0,0.0003013,120]
[387190649,1758627314356,1000.0,0.0003013,120]
[387190650,1758627315345,1000.0,0.0003013,120]
[387190651,1758627315869,1000.0,0.0003013,120]
[387190652,1758627322571,641.14,0.0003013,120]
[387190658,1758627378112,967.72,0.00021945,30]
[387190659,1758627390417,333.0,0.00030136,120]
[387190660,1758627410203,-140.5,0.00021945,30]
[387190664,1758627427659,199.0,0.00030136,120]
[387190688,1758627616459,255.0,0.00030136,120]
[387190697,1758627754442,150.0,0.00018649,120]
[387190699,1758627844976,173.79745,0.0001852,2]
[387190701,1758627913959,150.0,0.00018,2]
[387190702,1758627914425,150.0,0.00018333,2]
[387190703,1758627917864,150.0,0.00018,2]
[387190704,1758627917909,150.0,0.000184,2]
[387190705,1758627918309,150.0,0.00018,2]
[387190706,1758627918375,150.0,0.000185,2]
[387190707,1758627922372,150.0,0.00018,2]
[387190708,1758627922941,150.0,0.00018,2]
[387190709,1758627926329,150.0,0.00018,2]
[387190710,1758627930066,150.0,0.00018,2]
[387190711,1758627933651,150.0,0.00018,2]
[387190712,1758627939375,150.0,0.00018,2]
[387190713,1758627939445,150.0,0.000185,2]
[387190714,1758627939734,150.0,0.00018,2]
[387190715,1758627942360,150.0,0.00018,2]
[387190716,1758627942406,150.0,0.000185,2]
[387190717,1758627943280,150.0,0.00018,2]
[387190718,1758627943320,150.0,0.000185,2]
[387190719,1758627966732,701.64,0.00018436,2]
[387190721,1758628007070,759.35,0.00018436,2]
[387190722,1758628063056,2751.0,0.00018408,2]
[387190724,1758628110197,150.0,0.00018367,7]
[387190725,1758628154396,173.79744999,0.0001852,2]
[387190726,1758628185244,158.79,9.204e-05,2]
[387190727,1758628213431,250.0,0.00018408,2]
[387190736,1758628232194,-412.23558715,0.0001862,2]
[387190737,1758628232207,-1587.76441285,0.0001862,2]
[387190738,1758628232218,-1086.114,0.0001862,2]
[387190739,1758628232227,-150.0,0.00018649,2]
[387190740,1758628232446,-150.0,0.00018667,2]
[387190741,1758628232457,-150.0,0.00018667,2]
[387190742,1758628232467,-238.51158715,0.00018724,2]
[387190753,1758628233085,-961.48841285,0.00018724,2]
[387190754,1758628233095,-300.0,0.00018724,2]
[387190755,1758628233105,-200.0,0.00018724,2]
[387190756,1758628233115,-150.0,0.00018724,2]
[387190757,1758628233124,-300.0,0.00018725,2]
[387190758,1758628233134,-850.0,0.00018725,2]
[387190759,1758628233145,-200.0,0.00018726,2]
[387190760,1758628233155,-151.17252138,0.00018726,2]
[387190761,1758628233165,-151.0,0.00018726,2]
[387190762,1758628233176,-151.0,0.00018726,2]
[387190763,1758628233186,-500.0,0.00018726,2]
[387190764,1758628233195,-151.0,0.00018726,2]
[387190765,1758628233205,-151.0,0.00018726,2]
[387190766,1758628233216,-151.0,0.00018726,2]
[387190767,1758628233226,-196.80722004,0.00018726,2]
[387190768,1758628233239,-71.18277996,0.00018726,2]
[387190769,1758628233248,-297.2998433,0.00018726,2]
[387190770,1758628233260,-202.7001567,0.00018726,2]
[387190771,1758628233270,-164.76507534,0.00018726,2]
[387190772,1758628233282,-335.23492466,0.00018726,2]
[387190773,1758628233292,-500.0,0.00018726,2]
[387190774,1758628233303,-500.0,0.00018726,2]
[387190775,1758628233313,-345.24640336,0.00018726,2]
[387190776,1758628233354,-154.75359664,0.00018726,2]
[387190777,1758628233364,-500.0,0.00018726,2]
[387190778,1758628233376,-278.59464182,0.00018726,2]
[387190779,1758628233389,-221.40535818,0.00018726,2]
[387190780,1758628233398,-500.0,0.00018726,2]
[387190781,1758628233408,-500.0,0.00018726,2]
[387190782,1758628233419,-212.30244649,0.00018726,2]
[387190783,1758628233430,-151.0,0.00018726,2]
[387190784,1758628233440,-151.0,0.00018726,2]
[387190785,1758628233450,-151.0,0.00018726,2]
[387190786,1758628233461,-151.0,0.00018726,2]
[387190787,1758628233471,-151.0,0.00018726,2]
[387190788,1758628233481,-151.0,0.00018726,2]
[387190789,1758628233491,-151.0,0.00018726,2]
[387190790,1758628233500,-151.0,0.00018726,2]
[387190791,1758628233510,-151.0,0.00018726,2]
[387190792,1758628233520,-151.0,0.00018726,2]
[387190793,1758628233529,-151.0,0.00018726,2]
[387190794,1758628233539,-151.0,0.00018726,2]
[387190795,1758628233550,-151.0,0.00018726,2]
[387190796,1758628233560,-151.0,0.00018726,2]
[387190797,1758628233571,-151.0,0.00018726,2]
[387190798,1758628233581,-151.0,0.00018726,2]
[387190799,1758628233591,-151.0,0.00018726,2]
[387190800,1758628233601,-138.93037503,0.00018726,2]
[387190801,1758628233638,-12.06962497,0.00018726,2]
[387190802,1758628233648,-151.0,0.00018726,2]
[387190803,1758628233658,-151.0,0.00018726,2]
[387190804,1758628233668,-1200.0,0.00018736,2]
[387190805,1758628233677,-21207.38,0.00018737,2]
[387190806,1758628233687,-200.0,0.00018755,2]
[387190807,1758628233697,-150.0,0.00018773,2]
[387190808,1758628233707,-150.0,0.000188,2]
[387190809,1758628233717,-1703.87,0.00018936,2]
[387190810,1758628233726,-150.0,0.00019,2]
[387190811,1758628233736,-150.0,0.00019,2]
[387190812,1758628233747,-150.0,0.00019,2]
[387190813,1758628233757,-150.0,0.00019,2]
[387190814,1758628233766,-150.0,0.00019,2]
[387190815,1758628233776,-150.0,0.00019,2]
[387190816,1758628233786,-150.0,0.00019,2]
[387190817,1758628233795,-150.0,0.00019,2]
[387190818,1758628233805,-150.0,0.00019,2]
[387190819,1758628233815,-2227.84,0.00019048,2]
[387190820,1758628233825,-151.0,0.00019178,2]
[387190821,1758628233835,-782.3,0.00019189,2]
[387190822,1758628233846,-150.0,0.000192,4]
[387190823,1758628233855,-255.0,0.00019216,2]
[387190824,1758628233865,-1000.0,0.00019216,2]
[387190825,1758628233875,-847.8108408,0.00019268,2]
[387190826,1758628233886,-200.0,0.00019274,2]
[387190827,1758628233896,-161.5,0.0001932,2]
[387190828,1758628233906,-150.0,0.00019333,4]
[387190829,1758628234125,-150.0,0.00019333,4]
[387190830,1758628234135,-500.0,0.000195,2]
[387190831,1758628234145,-150.0,0.000195,4]
[387190832,1758628234156,-150.0,0.000195,4]
[387190833,1758628234165,-150.0,0.000195,4]
[387190834,1758628234175,-150.0,0.000195,4]
[387190835,1758628234184,-847.8108408,0.00019535,2]
[387190836,1758628234194,-150.0,0.000196,4]
[387190837,1758628234203,-150.0,0.00019667,4]
[387190838,1758628234213,-199.0,0.00019675,2]
[387190839,1758628234222,-171.61,0.00019675,2]
[387190840,1758628234232,-631.6,0.000197,2]
[387190841,1758628234241,-200.39,0.00019721,2]
[387190842,1758628234251,-847.81084082,0.00019742,2]
[387190843,1758628234261,-299.0,0.00019749,2]
[387190844,1758628234270,-501.30015686,0.00019784,2]
[387190845,1758628234280,-173.79744999,0.00019799,2]
[387190846,1758628234290,-239.25028534,0.000198,2]
[387190847,1758628234300,-527.71367998,0.000198,2]
[387190848,1758628234310,-527.71367998,0.00019811,2]
[387190849,1758628234320,-527.71367998,0.00019822,2]
[387190850,1758628234329,-527.71367998,0.00019833,2]
[387190851,1758628234339,-527.71367998,0.00019844,2]
[387190852,1758628234349,-527.71367998,0.00019856,2]
[387190853,1758628234359,-527.71367998,0.00019867,2]
[387190854,1758628234369,-527.71367998,0.00019878,2]
[387190855,1758628234382,-527.71367998,0.00019889,2]
[387190856,1758628234392,-3782.66991819,0.0001989,2]
[387190857,1758628234402,-334.23102514,0.00019899,2]
[387190858,1758628234411,-463.1568708,0.000199,2]
[387190859,1758628234421,-155.25521075,0.000199,2]
[387190860,1758628234431,-1281.50688706,0.000199,2]
[387190861,1758628234440,-188.34710444,0.000199,2]
[387190862,1758628234450,-181.4106866,0.000199,3]
[387190863,1758628234460,-527.71367998,0.000199,2]
[387190864,1758628234470,-1347.7480516,0.000199,2]
[387190865,1758628234479,-588.97917842,0.000199,2]
[387190866,1758628234489,-172.22488473,0.000199,2]
[387190867,1758628234499,-503.35728594,0.00019973,2]
[387190868,1758628234510,-500.0,0.00019973,2]
[387190869,1758628234519,-348.84636579,0.00019973,2]
[387190870,1758628234528,-500.0,0.00019973,2]
[387190871,1758628234538,-600.0,0.00019973,2]
[387190872,1758628234547,-90.62177799,0.00019973,2]
[387190873,1758628234559,-296.89106658,0.00019973,2]
[387190874,1758628234570,-500.0,0.00019973,2]
[387190875,1758628234579,-500.0,0.00019973,2]
[387190876,1758628234589,-500.0,0.00019973,2]
[387190877,1758628234599,-213.81484291,0.00019973,2]
[387190878,1758628234608,-589.56457916,0.00019973,2]
[387190879,1758628234618,-150.0,0.00019973,2]
[387190880,1758628234628,-150.0,0.00019973,2]
[387190881,1758628234637,-255.98096543,0.00019973,2]
[387190882,1758628234647,-150.0,0.00019973,2]
[387190883,1758628234657,-150.0,0.00019973,2]
[387190884,1758628234667,-500.0,0.00019973,2]
[387190885,1758628234676,-150.0,0.00019973,2]
[387190886,1758628234685,-150.0,0.00019973,2]
[387190887,1758628234695,-150.0,0.00019973,2]
[387190888,1758628234705,-150.0,0.00019973,2]
[387190889,1758628234714,-150.0,0.00019973,2]
[387190890,1758628234724,-500.0,0.00019973,2]
[387190891,1758628234733,-150.0,0.00019973,2]
[387190892,1758628234743,-150.0,0.00019976,2]
[387190893,1758628234753,-500.0,0.00019976,2]
[387190894,1758628234763,-500.0,0.00019976,2]
[387190895,1758628234772,-150.0,0.00019976,2]
[387190896,1758628234781,-221.26077731,0.00019976,2]
[387190897,1758628234790,-143.68713905,0.00019976,2]
[387190898,1758628234814,-6.31286095,0.00019976,2]
[387190899,1758628234824,-500.0,0.00019976,2]
[387190900,1758628234833,-34.32166349,0.00019976,2]
[387190918,1758628240271,-115.67833651,0.00019976,2]
[387190920,1758628240281,-150.0,0.00019976,2]
[387190922,1758628240290,-1510.0,0.00019976,2]
[387190924,1758628240300,-500.0,0.00019976,2]
[387190925,1758628240309,-150.0,0.00019976,2]
[387190927,1758628240320,-500.0,0.00019976,2]
[387190929,1758628240330,-500.0,0.00019976,2]
[387190931,1758628240339,-500.0,0.00019976,2]
[387190932,1758628240349,-150.0,0.00019976,2]
[387190934,1758628240359,-500.0,0.00019976,2]
[387190936,1758628240368,-500.0,0.00019976,2]
[387190938,1758628240379,-500.0,0.00019976,2]
[387190940,1758628240389,-500.0,0.00019976,2]
[387190942,1758628240399,-417.0,0.00019976,2]
[387190944,1758628240408,-150.0,0.00019976,2]
[387190946,1758628240417,-150.0,0.00019976,2]
[387190948,1758628240426,-150.0,0.00019976,2]
[387190950,1758628240436,-150.0,0.00019976,2]
[387190952,1758628240446,-150.0,0.00019976,2]
[387190954,1758628240455,-150.0,0.00019976,2]
[387190956,1758628240465,-150.0,0.00019976,2]
[387190957,1758628240474,-500.0,0.00019976,2]
[387190959,1758628240484,-500.0,0.00019976,2]
[387190961,1758628240493,-150.0,0.00019976,2]
[387190962,1758628240503,-500.0,0.00019976,2]
[387190963,1758628240512,-150.0,0.00019976,2]
[387190964,1758628240522,-423.0,0.00019976,2]
[387190965,1758628240531,-500.0,0.00019976,2]
[387190966,1758628240541,-584.85437646,0.0001998,2]
[387190967,1758628240550,-500.0,0.00019988,2]
[387190968,1758628240559,-150.0,0.00019988,2]
[387190969,1758628240569,-230.18092968,0.0001999,2]
[387190970,1758628240578,-386.69496358,0.00019999,2]
[387190971,1758628240587,-300.0,0.00019999,2]
[387190972,1758628240598,-300.0,0.00019999,2]
[387190973,1758628240608,-168.30127538,0.00019999,2]
[387190974,1758628240620,-208.14226228,0.00019999,2]
[387190975,1758628240629,-4975.57513198,0.0002,2]
[387190976,1758628240639,-506959.21653539,0.0002,2]
[387190978,1758628240647,-223.82575338,0.0002,4]
[387190980,1758628240657,-261060.66297037,0.0002,2]
[387190994,1758628243907,-550.05300345,0.0002,2]
[387190996,1758628243935,-2930.91111726,0.0002,2]
[387190997,1758628246154,-18566.3886742,0.000199,2]
[387190998,1758628246165,-7018.53512722,0.000199,2]
[387190999,1758628246275,-357.89616448,0.000199,2]
[387191064,1758628283836,1700.0,0.00030137,120]
[387191065,1758628398351,1015.86,0.00021945,30]
[387191095,1758629087958,151.54,9.45e-05,2]
[387191097,1758629104602,256.15657804,0.00018,2]
[387191098,1758629108226,223.82575338,0.00018,2]
[387191099,1758629108280,217.66253909,0.00018,2]
[387191100,1758629115212,150.0,0.00018,2]
[387191101,1758629115292,286.39081286,0.00018,2]
[387191102,1758629115429,174.98136805,0.00018,2]
[387191103,1758629117343,178.00298222,0.00018,2]
[387191104,1758629124946,177.33140808,0.00018,2]
[387191105,1758629127550,224.84664909,0.00018,2]
[387191106,1758629128637,150.00000001,0.00018,2]
[387191107,1758629130020,150.0,0.00018,2]
[387191108,1758629132660,242.36616451,0.00018,2]
[387191109,1758629219850,150.0,0.00018,2]
[387191110,1758629264493,2801.50063539,0.00030136,120]
[387191111,1758629275138,150.00001619,0.000301,120]
[387191112,1758629318691,931.2,0.00021945,30]
[387191113,1758629395080,887.36,0.00018573,2]
[387191122,1758629432333,-399.98,0.00018772,2]
[387191123,1758629432343,-144.58254254,0.00018794,2]
[387191124,1758629432355,-105.41745746,0.00018794,2]
[387191125,1758629432366,-206.7,0.00018816,2]
[387191126,1758629432376,-250.0,0.00018856,2]
[387191127,1758629432386,-527.0,0.00018881,2]
[387191128,1758629432395,-111.1265729,0.000189,2]
[387191129,1758629432488,-40.4134271,0.000189,2]
[387191130,1758629432498,-500.0,0.00018925,2]
[387191131,1758629432509,-270.65673229,0.00018996,2]
[387191132,1758629432543,-29.34326771,0.00018996,2]
[387191133,1758629432553,-571.73339598,0.00018996,2]
[387191134,1758629432565,-628.26660402,0.00018996,2]
[387191135,1758629432575,-156.47,0.00018997,2]
[387191136,1758629432584,-500.0,0.00018997,2]
[387191137,1758629432594,-500.0,0.00018997,2]
[387191138,1758629432603,-500.0,0.00018997,2]
[387191139,1758629432613,-500.0,0.00018997,2]
[387191140,1758629432622,-500.0,0.00018997,2]
[387191141,1758629432632,-237.74665844,0.00018997,2]
[387191142,1758629432641,-602.14,0.00019018,2]
[387191143,1758629432651,-1875.88,0.00019077,2]
[387191144,1758629432660,-1000.0,0.0001908,2]
[387191145,1758629432670,-200.0,0.00019087,2]
[387191146,1758629432679,-150.0,0.0001918,2]
[387191147,1758629432688,-171.61,0.00019292,2]
[387191148,1758629432698,-153.71,0.00019595,2]
[387191149,1758629432708,-2000.0,0.000197,2]
[387191150,1758629432717,-211.86405144,0.000198,2]
[387191151,1758629432727,-5371.37659566,0.000198,2]
[387191152,1758629432736,-5011.00247,0.000198,2]
[387191153,1758629432746,-173.12715309,0.000198,2]
[387191154,1758629432756,-5371.37659561,0.00019811,2]
[387191155,1758629432765,-5333.68829459,0.00019822,2]
[387191156,1758629432782,-37.68830102,0.00019822,2]
[387191157,1758629432791,-527.0,0.00019825,2]
[387191158,1758629432801,-453.24874918,0.00019833,2]
[387191159,1758629432822,-1050.0,0.00019833,2]
[387191160,1758629432834,-1988.59316169,0.00019833,2]
[387191161,1758629432861,-415.3259997,0.00019833,2]
[387191162,1758629438249,-1464.20868504,0.00019833,2]
[387191163,1758629438259,-2927.45719053,0.00019844,2]
[387191164,1758629438413,-2443.91940508,0.00019844,2]
[387191165,1758629438423,-5371.37659561,0.00019856,2]
[387191166,1758629438432,-5371.37659561,0.00019867,2]
[387191167,1758629438443,-5371.37659561,0.00019878,2]
[387191168,1758629438453,-151.0,0.00019888,2]
[387191169,1758629438462,-151.0,0.00019888,2]
[387191170,1758629438472,-151.0,0.00019888,2]
[387191171,1758629438481,-151.0,0.00019888,2]
[387191172,1758629438491,-151.0,0.00019888,2]
[387191173,1758629438500,-151.0,0.00019888,2]
[387191174,1758629438510,-151.0,0.00019888,2]
[387191175,1758629438519,-151.0,0.00019888,2]
[387191176,1758629438529,-151.0,0.00019888,2]
[387191177,1758629438539,-151.0,0.00019888,2]
[387191178,1758629438549,-151.0,0.00019888,2]
[387191179,1758629438559,-151.0,0.00019888,2]
[387191180,1758629438569,-301.69565651,0.00019888,2]
[387191181,1758629438579,-151.0,0.00019888,2]
[387191182,1758629438589,-151.0,0.00019888,2]
[387191183,1758629438599,-151.0,0.00019888,2]
[387191184,1758629438610,-5371.37659561,0.00019889,2]
[387191185,1758629438620,-3030.41,0.0001989,2]
[387191186,1758629438631,-1097.915,0.00019899,2]
[387191187,1758629438641,-500.0,0.00019899,2]
[387191188,1758629438652,-244.53193848,0.00019899,2]
[387191189,1758629438663,-500.0,0.00019899,2]
[387191190,1758629438673,-500.0,0.00019899,2]
[387191191,1758629438684,-500.0,0.00019899,2]
[387191192,1758629438695,-441.77687586,0.00019899,2]
[387191193,1758629438705,-500.0,0.00019899,2]
[387191194,1758629438715,-180.168,0.00019899,2]
[387191195,1758629438725,-396.9916035,0.000199,2]
[387191197,1758629438735,-10070.3170952,0.000199,2]
[387191202,1758629438776,-402.74231899,0.000199,2]
[387191357,1758629440462,-400.0,0.000199,2]
[387191364,1758629440516,-321839.81347026,0.000199,2]
[387191366,1758629440525,-5371.37659561,0.000199,2]
[387191368,1758629440535,-4665.36570005,0.000199,2]
[387191370,1758629440544,-3686.1102115,0.000199,2]
[387191372,1758629440555,-181.41068659,0.000199,3]
[387191374,1758629440565,-1364.15036886,0.000199,2]
[387191376,1758629440575,-500.0,0.00019973,2]
[387191378,1758629440585,-502.41953048,0.00019973,2]
[387191380,1758629440595,-500.0,0.00019973,2]
[387191382,1758629440605,-584.85437646,0.0001998,2]
[387191384,1758629440615,-500.0,0.00019988,2]
[387191386,1758629440625,-150.0,0.00019988,2]
[387191388,1758629440634,-150.0,0.00019988,2]
[387191390,1758629440644,-500.0,0.00019988,2]
[387191392,1758629440654,-150.0,0.00019988,2]
[387191394,1758629440663,-150.0,0.00019988,2]
[387191396,1758629440672,-150.0,0.00019988,2]
[387191398,1758629440682,-150.86588004,0.00019988,2]
[387191400,1758629440694,-150.0,0.00019988,2]
[387191402,1758629440703,-150.0,0.00019988,2]
[387191404,1758629440713,-1111.0,0.00019988,2]
[387191406,1758629440722,-500.0,0.00019988,2]
[387191409,1758629440731,-500.0,0.00019988,2]
[387191411,1758629440741,-150.0,0.00019988,2]
[387191413,1758629440751,-500.0,0.00019988,2]
[387191415,1758629440761,-500.0,0.00019988,2]
[387191417,1758629440770,-500.0,0.00019988,2]
[387191419,1758629440780,-500.0,0.00019988,2]
[387191421,1758629440789,-500.0,0.00019988,2]
[387191423,1758629440798,-500.0,0.00019988,2]
[387191425,1758629440808,-150.0,0.00019988,2]
[387191427,1758629440817,-150.0,0.00019988,2]